bitfinex-derivatives/quotes_ETHF0:USTF0_20250213
["timestamp","ask_amount","ask_price","bid_price","bid_amount"]
[1739434581425,0.00562588,2666.4,2666.3,0.74999]
[1739434583620,5.88e-06,2666.4,2666.3,6.74999]
[1739434583820,3.18737657,2667.0,2666.9,0.74982]
[1739434584021,3.2078,2667.5,2667.1,0.74974]
[1739434584319,3.2078,2667.5,2667.2,0.74972]
[1739434584524,3.2078,2667.5,2666.5,3.2078]
[1739434584926,3.2078,2667.5,2667.4,0.74968]
[1739434585326,0.00562588,2667.3,2667.2,0.74974]
[1739434585721,0.00562588,2667.3,2666.7,0.00562588]
[1739434585926,3.2078,2667.1,2667.0,0.74979]
[1739434586325,3.2078,2667.1,2666.7,0.00562588]
[1739434586530,0.00562588,2667.3,2666.7,0.00562588]
[1739434586531,3.2078,2666.8,2666.7,0.00562588]
[1739434586722,3.2078,2666.8,2665.6,1.87544]
[1739434586925,3.2078,2666.5,2666.4,0.74994]
[1739434587622,2.41461,2666.5,2666.4,6.74994]
[1739434587831,3.2078,2667.2,2666.4,6.0]
[1739434588024,3.2078,2667.2,2667.1,0.74977]
[1739434588218,3.2078,2667.2,2666.6,3.2078]
[1739434588421,3.2078,2667.2,2667.1,0.74977]
[1739434589323,0.00562588,2667.3,2667.2,0.74974]
[1739434590432,0.00562588,2667.3,2666.4,1.8749]
[1739434590733,3.2078,2667.2,2667.1,0.74977]
[1739434591430,3.2078,2667.2,2666.4,2.99847337]
[1739434591626,3.2078,2667.2,2667.1,0.74977]
[1739434591825,7.72275117,2667.2,2666.2,0.00562588]
[1739434592023,0.00562588,2667.3,2667.2,0.74974]
[1739434592221,5.68594759,2668.0,2667.2,0.74974]
[1739434592428,8.89374759,2668.1,2667.1,3.2078]
[1739434592627,8.89374759,2668.1,2667.2,40.8]
[1739434592828,3.2078,2668.0,2667.4,3.2078]
[1739434593032,3.2078,2668.0,2667.2,40.8]
[1739434593421,0.00562588,2667.9,2667.2,40.8]
[1739434593631,3.2078,2667.6,2667.1,3.2078]
[1739434593828,7.72275117,2667.2,2666.2,0.00562588]
[1739434594036,3.2078,2667.5,2666.4,3.2078]
[1739434594234,3.7525,2667.8,2667.0,3.2078]
[1739434594422,3.21342588,2667.9,2667.8,0.74957]
[1739434594629,0.00562588,2667.9,2667.8,0.74957]
[1739434595733,5.88e-06,2667.9,2667.8,6.74957]
[1739434596236,5.88e-06,2667.9,2667.8,11.26452117]
[1739434596433,5.88e-06,2667.9,2667.8,16.1964671]
[1739434596734,5.68594759,2668.7,2667.8,15.4468971]
[1739434596926,5.68594759,2668.7,2668.6,3.95714]
[1739434597126,3.88256759,2668.7,2668.6,3.95714]
[1739434597324,3.63250208,2668.8,2668.7,0.74932]
[1739434597730,3.63250208,2668.8,2668.7,41.54932]
[1739434598135,3.63250208,2668.8,2668.7,40.8]
[1739434598339,3.63250208,2668.8,2668.2,3.7898]
[1739434598532,3.2078,2668.6,2667.9,3.2078]
[1739434598839,3.2078,2668.6,2667.7,0.586]
[1739434599137,3.2078,2668.6,2667.9,3.2078]
[1739434599937,3.2078,2668.6,2668.4,0.7494]
[1739434600139,3.2078,2668.6,2668.5,0.74937]
[1739434600635,3.2078,2668.6,2667.9,3.2078]
[1739434600831,3.2078,2668.6,2668.4,0.74938]
[1739434601035,3.2078,2668.6,2667.9,3.2078]
[1739434601230,0.00562588,2669.0,2668.2,2.4495929]
[1739434601433,3.21342588,2669.0,2668.8,0.74927]
[1739434601633,3.21342588,2669.0,2668.9,0.74926]
[1739434602033,8.53454727,2669.0,2668.9,0.74926]
[1739434603032,7.65675727,2669.0,2668.9,0.74926]
[1739434603236,4.99365727,2669.0,2668.9,3.95706]
[1739434603432,4.99365727,2669.0,2668.9,0.74926]
[1739434603626,4.99365727,2669.0,2668.9,41.54926]
[1739434603844,4.99365727,2669.0,2668.9,0.74926]
[1739434604841,3.21342588,2669.2,2668.3,44.01199207]
[1739434604842,3.21342588,2669.2,2669.1,0.7492]
[1739434605330,0.00562588,2669.2,2669.1,3.957]
[1739434605529,0.00562588,2669.2,2669.1,0.7492]
[1739434606435,5.88e-06,2669.2,2669.1,0.7492]
[1739434606635,5.88e-06,2669.2,2669.1,3.957]
[1739434606834,5.88e-06,2669.2,2669.1,9.957]
[1739434607032,9.19933417,2669.6,2669.5,0.74909]
[1739434607629,9.19933417,2669.6,2669.5,41.54909]
[1739434608138,8.44582417,2669.6,2669.5,41.54909]
[1739434608333,7.65811417,2669.6,2669.5,44.75689]
[1739434608639,6.90451417,2669.6,2669.5,44.75689]
[1739434608831,5.50855417,2669.6,2669.5,50.75689]
[1739434609034,4.54139417,2669.6,2669.5,50.75689]
[1739434609231,1.66378417,2669.6,2669.5,50.75689]
[1739434609439,0.69953417,2669.6,2669.5,50.75689]
[1739434609746,8.75369936,2669.7,2669.6,0.74906]
[1739434610036,0.00562588,2669.8,2669.5,50.5584]
[1739434610226,0.00562588,2669.8,2669.7,0.74904]
[1739434610433,12.79338209,2670.8,2669.8,1.87246]
[1739434610731,12.79338209,2670.8,2670.1,3.2078]
[1739434611139,13.54211209,2670.8,2670.1,3.2078]
[1739434611440,13.54212209,2670.8,2670.4,0.74882]
[1739434611638,0.00362088,2670.7,2670.4,0.74882]
[1739434611835,0.00362088,2670.7,2670.1,3.2078]
[1739434612139,0.00362088,2670.7,2669.5,41.3506]
[1739434612140,0.00362088,2670.7,2670.6,0.74878]
[1739434613530,0.00362088,2670.7,2670.1,1.87232]
[1739434613732,0.00362088,2670.7,2670.6,0.74878]
[1739434615133,0.00362088,2670.7,2670.6,6.74878]
[1739434615333,0.00362088,2670.7,2670.6,9.95658]
[1739434615738,3.2078,2671.4,2670.6,50.0078]
[1739434615936,3.2078,2671.4,2671.3,0.74859]
[1739434616637,3.2078,2671.4,2671.3,41.54859]
[1739434616940,12.79338209,2671.5,2671.4,0.74856]
[1739434617134,3.2078,2671.9,2671.3,40.8]
[1739434617341,3.2078,2671.9,2671.3,41.54858]
[1739434617541,3.95623,2671.9,2671.5,0.74851]
[1739434617736,3.95623,2671.9,2671.6,0.74849]
[1739434618037,3.2078,2671.9,2671.3,40.8]
[1739434618242,3.2078,2671.6,2671.3,40.8]
[1739434618539,0.74861,2671.2,2671.1,0.00561514]
[1739434619136,1.31711,2671.2,2671.1,0.00561514]
[1739434619542,0.5685,2671.2,2671.1,0.00561514]
[1739434620338,0.5685,2671.2,2670.3,3.2078]
[1739434620540,0.74879,2670.6,2670.2,0.74888]
[1739434620839,3.2078,2670.5,2669.8,3.7844]
[1739434621137,3.2078,2670.5,2670.4,0.74884]
[1739434621449,2.163,2671.1,2670.2,3.2078]
[1739434621645,0.5685,2671.2,2671.1,0.74864]
[1739434621940,3.2078,2671.8,2670.9,3.2078]
[1739434622144,0.00557934,2671.4,2670.6,3.2078]
[1739434622346,0.75414934,2671.4,2671.1,0.74863]
[1739434622539,0.00557934,2671.4,2671.1,0.74863]
[1739434622739,0.75414934,2671.4,2671.1,0.74864]
[1739434623642,1.29714934,2671.4,2670.7,40.8]
[1739434623840,3.2078,2671.2,2670.7,40.8]
[1739434624242,3.2078,2670.9,2670.2,0.00561514]
[1739434624549,0.74876,2670.7,2670.4,0.74882]
[1739434624846,0.5885,2670.8,2670.4,40.8]
[1739434625040,1.33724,2670.8,2670.5,0.7488]
[1739434625340,3.2078,2670.6,2670.2,0.00561514]
[1739434625544,3.2078,2670.3,2669.7,0.74903]
[1739434625842,3.2078,2669.9,2669.8,40.8]
[1739434626346,0.74904,2669.7,2669.3,0.74913]
[1739434626652,3.2078,2669.6,2669.3,0.74913]
[1739434626837,3.2078,2669.6,2669.3,0.74915]
[1739434627145,3.2078,2669.6,2669.2,0.00561514]
[1739434627738,3.2078,2669.6,2669.4,0.7491]
[1739434628039,0.00561514,2669.8,2669.7,0.74904]
[1739434628742,5.14e-06,2669.8,2669.7,50.75684]
[1739434630440,3.2078,2671.1,2669.7,50.0078]
[1739434630648,3.2078,2671.1,2671.0,0.74867]
[1739434631043,0.5842,2671.2,2671.1,0.74864]
[1739434631344,0.5842,2671.2,2670.4,1.8721]
[1739434631345,0.5887,2671.7,2670.9,3.2078]
[1739434631539,0.5887,2671.7,2670.6,3.2078]
[1739434631540,3.2078,2671.5,2670.6,3.2078]
[1739434631842,3.2078,2671.2,2671.0,0.75428514]
[1739434632142,3.2078,2671.2,2671.0,0.00561514]
[1739434632338,3.2078,2671.2,2671.1,0.74864]
[1739434632841,0.58977934,2671.6,2671.5,0.74853]
[1739434633041,0.58977934,2671.6,2671.4,0.74855]
[1739434633247,0.74856,2671.5,2671.0,0.00561514]
[1739434633543,3.95643,2671.2,2671.1,40.8]
[1739434633745,3.2078,2671.2,2671.1,40.8]
[1739434634443,3.2078,2671.2,2671.0,0.00561514]
[1739434635041,3.2078,2671.2,2671.1,0.74864]
[1739434635343,3.2078,2671.2,2670.9,0.74868]
[1739434635543,3.2078,2671.3,2671.2,0.74861]
[1739434635742,3.79757934,2671.6,2670.8,3.2078]
[1739434635945,3.79757934,2671.6,2671.3,0.74856]
[1739434636145,3.79757934,2671.6,2670.8,3.2078]
[1739434636346,3.2078,2671.2,2670.5,3.2078]
[1739434636646,3.2078,2671.2,2670.9,0.75430514]
[1739434636840,3.2078,2671.2,2671.0,0.74866]
[1739434637247,3.2078,2671.2,2670.9,0.00561514]
[1739434637543,3.21337934,2671.6,2671.1,0.74864]
[1739434637741,3.21337934,2671.6,2671.5,0.74853]
[1739434638436,0.00557934,2671.6,2671.5,0.74853]
[1739434638635,0.00557934,2671.6,2671.5,41.54853]
[1739434638839,0.00557934,2671.6,2671.5,47.54853]
[1739434639252,0.00557934,2671.6,2671.5,52.89333]
[1739434639753,0.00557934,2671.6,2671.5,46.89333]
[1739434639948,0.00557934,2671.6,2671.5,52.89333]
[1739434640751,0.00557934,2671.6,2671.5,46.89333]
[1739434641049,0.00557934,2671.6,2671.5,44.75633]
[1739434641244,0.00557934,2671.6,2671.5,40.8]
[1739434641450,0.00557934,2671.6,2671.5,3.95633]
[1739434641751,0.00557934,2671.6,2671.5,9.95633]
[1739434641945,9.34e-06,2671.6,2671.5,50.75633]
[1739434645445,9.34e-06,2671.6,2671.5,55.27128117]
[1739434646541,9.34e-06,2671.6,2671.5,60.1398119]
[1739434647953,9.34e-06,2671.6,2671.5,52.86233]
[1739434648448,9.34e-06,2671.6,2671.5,57.37728117]
[1739434649046,11.4299161,2672.4,2671.5,61.38763815]
[1739434649245,11.4299161,2672.4,2672.3,0.74831]
[1739434649654,10.5569361,2672.4,2672.3,41.54831]
[1739434649851,9.3943861,2672.4,2672.3,47.54831]
[1739434650054,10.93706209,2672.5,2672.3,56.13286949]
[1739434650347,8.0839357,2672.5,2672.4,4.53718]
[1739434650547,3.5547657,2672.5,2672.4,4.53718]
[1739434650752,1.1414557,2672.5,2672.4,10.53718]
[1739434650958,1.1414557,2672.5,2672.4,10.83509984]
[1739434651253,0.0414557,2672.5,2672.4,51.63509984]
[1739434651553,0.00561514,2672.6,2672.5,0.74825]
[1739434651849,0.00561514,2672.6,2672.5,2.84925]
[1739434652057,5.14e-06,2672.6,2672.5,8.84925]
[1739434652652,5.14e-06,2672.6,2672.5,2.84925]
[1739434652855,5.14e-06,2672.6,2672.5,43.64925]
[1739434653052,5.14e-06,2672.6,2672.5,49.64925]
[1739434654163,11.70980347,2673.6,2673.5,0.74797]
[1739434654356,11.70980347,2673.6,2673.5,6.06677]
[1739434654959,11.70980347,2673.6,2673.5,3.95577]
[1739434655156,0.5897,2674.3,2673.5,11.3148]
[1739434655361,3.74240588,2674.2,2673.8,3.2078]
[1739434655560,3.74240588,2674.1,2673.9,0.74786]
[1739434655761,3.74240588,2674.1,2674.0,0.74783]
[1739434656356,3.74240588,2674.1,2674.0,41.54783]
[1739434656555,3.74240588,2674.1,2674.0,40.8]
[1739434656754,3.74240588,2674.1,2674.0,41.54783]
[1739434656958,0.5897,2674.3,2674.2,0.74777]
[1739434657357,4.33210588,2674.3,2674.0,40.8]
[1739434657563,3.74240588,2674.1,2674.0,40.8]
[1739434657860,3.74240588,2674.1,2673.9,3.2078]
[1739434658065,3.74240588,2674.0,2673.9,3.95564]
[1739434658456,3.74240588,2674.0,2673.9,44.75564]
[1739434658656,0.5897,2674.3,2673.9,44.0078]
[1739434658861,0.5897,2674.3,2674.0,0.74783]
[1739434659064,3.74240588,2674.0,2673.9,44.75565]
[1739434659263,3.74240588,2674.0,2673.9,3.2078]
[1739434659765,3.74240588,2674.0,2673.9,3.95566]
[1739434660169,0.5897,2674.3,2674.2,0.74777]
[1739434660466,3.74240588,2674.0,2673.7,0.00561514]
[1739434660673,3.74240588,2673.8,2673.7,0.00561514]
[1739434660965,3.74240588,2673.9,2673.8,0.74789]
[1739434661164,3.74240588,2673.9,2673.7,3.21341514]
[1739434661472,3.74240588,2673.9,2673.8,0.74789]
[1739434662662,3.74240588,2673.9,2673.8,40.8]
[1739434662868,3.74240588,2673.9,2673.8,41.54789]
[1739434664467,0.5897,2674.3,2674.2,0.74777]
[1739434664873,4.33210588,2674.3,2674.2,0.74777]
[1739434666076,1.1396,2674.6,2674.1,3.2078]
[1739434666277,1.1396,2674.6,2674.0,5.92253048]
[1739434666278,3.37383588,2674.5,2674.4,3.95552]
[1739434668068,3.37383588,2674.5,2674.3,0.74773]
[1739434668268,3.37383588,2674.4,2674.3,0.74773]
[1739434668975,3.37383588,2674.4,2674.0,7.04733048]
[1739434669176,3.37383588,2674.1,2674.0,7.79516048]
[1739434669476,3.37383588,2674.4,2674.3,0.74773]
[1739434669779,3.36164582,2674.4,2674.3,0.74773]
[1739434670275,3.36164582,2674.4,2674.3,7.79506048]
[1739434671974,0.5854,2674.6,2674.5,0.74769]
[1739434672268,3.94704582,2674.6,2674.5,0.74769]
[1739434672773,3.2078,2675.4,2674.5,40.8]
[1739434673078,0.5469,2675.3,2675.2,0.7475]
[1739434673272,3.36164582,2675.0,2674.9,3.2078]
[1739434673473,3.36164582,2675.0,2674.8,3.83953048]
[1739434673674,3.2078,2676.4,2674.9,3.2078]
[1739434673871,1.1925,2676.5,2676.0,3.83953048]
[1739434674270,3.36164582,2676.1,2676.0,3.83953048]
[1739434674576,3.36164582,2676.1,2676.0,4.59240471]
[1739434675071,1.1925,2676.5,2676.0,3.84513471]
[1739434675377,3.36164582,2676.1,2676.0,4.59240471]
[1739434675679,3.36164582,2676.1,2676.0,45.39240471]
[1739434676978,3.36164582,2676.1,2676.0,44.64513471]
[1739434677182,3.36164582,2676.1,2676.0,41.55287423]
[1739434677480,3.36164582,2676.1,2676.0,0.00560423]
[1739434677875,6.57179337,2676.1,2675.5,3.2078]
[1739434678180,3.36164582,2675.6,2675.3,0.74746]
[1739434678370,3.36164582,2675.3,2675.1,26.63533048]
[1739434678682,3.36164582,2675.3,2675.2,0.7475]
[1739434679770,3.36164582,2675.3,2675.1,26.63533048]
[1739434679977,3.36164582,2675.2,2675.1,19.588]
[1739434680175,3.36164582,2675.2,2674.9,40.80560423]
[1739434680476,3.36164582,2675.0,2674.9,41.55318423]
[1739434681280,3.36164582,2675.0,2674.9,40.80560423]
[1739434681582,6.56944582,2675.0,2674.3,2.037]
[1739434681785,3.36164582,2674.4,2674.3,0.74774]
[1739434681979,3.36164582,2674.4,2674.3,41.54774]
[1739434683079,3.36164582,2674.4,2674.3,40.8]
[1739434683382,6.56944582,2674.4,2674.3,40.8]
[1739434683682,6.56944582,2674.4,2674.3,0.74775]
[1739434683683,3.36164582,2674.4,2674.3,0.74775]
[1739434683881,3.36164582,2674.4,2674.3,3.95555]
[1739434684581,3.36164582,2674.4,2674.3,44.75555]
[1739434685287,0.5854,2674.7,2674.6,0.74766]
[1739434685679,3.94704582,2674.7,2674.6,0.74766]
[1739434685878,3.36164582,2674.7,2674.6,0.74766]
[1739434686076,0.5534,2674.9,2674.6,3.2078]
[1739434686284,3.36164582,2674.9,2674.6,3.2078]
[1739434686585,0.5491,2675.3,2675.2,0.7475]
[1739434687079,3.91074582,2675.3,2675.2,0.7475]
[1739434687284,0.5449,2675.7,2675.1,3.83953048]
[1739434687484,0.5449,2675.7,2675.4,4.58697048]
[1739434687788,0.5449,2675.7,2675.4,45.38697048]
[1739434687987,3.36721368,2675.5,2675.4,45.38697048]
[1739434689888,3.36721368,2675.5,2675.4,47.40797048]
[1739434690088,0.00556786,2675.5,2675.4,47.40797048]
[1739434690584,3.36721368,2675.5,2674.8,3.83953048]
[1739434690789,3.36164582,2674.9,2674.8,0.74761]
[1739434691287,3.36164582,2674.9,2674.8,41.54761]
[1739434691693,3.36164582,2674.9,2674.8,45.38714048]
[1739434692390,0.5875,2675.3,2675.1,0.74751]
[1739434692591,0.5875,2675.3,2675.0,3.2078]
[1739434692888,3.36164582,2674.9,2674.8,44.63953048]
[1739434693086,3.36164582,2674.9,2674.8,40.8]
[1739434693287,3.36164582,2674.9,2674.8,41.54761]
[1739434694792,3.36164582,2674.9,2674.8,45.38714048]
[1739434694993,3.21336786,2675.5,2674.8,44.63953048]
[1739434695188,3.36164582,2675.1,2675.0,0.74755]
[1739434695590,3.36164582,2675.1,2674.8,44.63953048]
[1739434695988,3.36164582,2675.1,2675.0,0.74755]
[1739434696189,3.21336786,2675.5,2675.2,0.74748]
[1739434696487,3.21336786,2675.5,2674.8,44.63953048]
[1739434696488,0.00556786,2675.5,2675.4,3.83953048]
[1739434696682,0.00556786,2675.5,2675.4,4.58697048]
[1739434696989,0.00556786,2675.5,2675.4,0.74744]
[1739434697193,2.50025368,2675.5,2675.4,0.74744]
[1739434697494,2.50025368,2675.5,2675.3,3.2078]
[1739434697681,0.00556786,2675.5,2675.4,40.8]
[1739434698180,2.50025368,2675.5,2675.3,3.95526]
[1739434698385,2.49468582,2675.4,2675.3,3.95526]
[1739434698579,2.49468582,2675.4,2675.3,44.75526]
[1739434698785,2.49468582,2675.4,2675.3,44.0078]
[1739434698986,2.49468582,2675.4,2675.3,44.75527]
[1739434699186,2.49468582,2675.4,2675.3,44.0078]
[1739434699380,2.49468582,2675.4,2675.3,44.75527]
[1739434699997,2.49468582,2675.4,2675.3,44.0078]
[1739434700384,2.49468582,2675.4,2675.3,44.75527]
[1739434700787,0.00556786,2675.5,2675.4,0.74744]
[1739434701289,2.50025368,2675.5,2675.3,44.75525]
[1739434701485,2.49468582,2675.4,2675.3,44.75525]
[1739434703192,0.00556786,2675.5,2675.4,0.74744]
[1739434703590,2.50025368,2675.5,2675.4,0.74744]
[1739434704286,0.00556786,2675.5,2675.4,0.74744]
[1739434704491,2.50025368,2675.5,2675.4,0.74744]
[1739434704996,0.00556786,2675.5,2675.4,0.74744]
[1739434705999,0.00556786,2675.5,2675.4,4.58697048]
[1739434707101,0.00234755,2676.1,2676.0,0.74727]
[1739434707598,2.49703337,2676.1,2676.0,0.74727]
[1739434708002,2.49703337,2676.1,2676.0,41.54727]
[1739434709400,2.49703337,2676.1,2676.0,0.74727]
[1739434709898,2.49703337,2676.1,2676.0,41.54727]
[1739434711102,2.49703337,2676.1,2676.0,40.8]
[1739434711401,2.49703337,2676.1,2675.8,3.96071423]
[1739434711589,2.49468582,2675.9,2675.8,0.75291423]
[1739434711790,2.49468582,2675.9,2675.8,0.00560423]
[1739434712497,2.49468582,2675.9,2675.6,40.8]
[1739434712695,0.00234755,2676.1,2675.7,0.74733]
[1739434712900,0.74959755,2676.1,2675.7,0.74733]
[1739434713200,2.49468582,2675.8,2675.7,0.74733]
[1739434714599,2.49468582,2675.8,2675.7,0.74736]
[1739434714799,2.49468582,2675.8,2675.6,40.8]
[1739434715001,2.49468582,2675.7,2675.6,40.8]
[1739434715602,2.49468582,2675.7,2675.6,41.54738]
[1739434715995,3.2078,2675.9,2675.6,41.54738]
[1739434716302,0.00234755,2676.1,2675.6,41.54738]
[1739434716303,2.49468582,2675.7,2675.6,41.54738]
[1739434716506,2.49468582,2675.7,2675.6,40.8]
[1739434717698,2.49468582,2675.7,2675.6,41.54738]
[1739434718398,2.49468582,2675.7,2675.6,40.8]
[1739434719000,2.49468582,2675.7,2675.6,41.54738]
[1739434719806,2.49468582,2675.7,2675.6,40.8]
[1739434720005,2.49468582,2675.7,2675.6,41.54738]
[1739434720804,2.49468582,2675.7,2675.6,40.8]
[1739434720999,2.49468582,2675.7,2675.6,41.54738]
[1739434721407,3.21014755,2676.1,2676.0,0.74727]
[1739434721898,5.70483337,2676.1,2676.0,0.74727]
[1739434722094,5.70483337,2676.1,2675.7,3.83953048]
[1739434722299,2.49468582,2675.8,2675.7,0.74734]
[1739434726211,2.49468582,2675.8,2675.6,40.8]
[1739434726408,2.49468582,2675.7,2675.6,40.8]
[1739434726803,2.49468582,2675.7,2675.6,41.54738]
[1739434728311,2.49468582,2675.7,2675.6,40.8]
[1739434729608,2.49468582,2675.7,2675.6,41.54738]
[1739434731210,2.49468582,2675.7,2675.6,0.74738]
[1739434731912,2.49468582,2675.7,2675.5,0.00560423]
[1739434732098,15.63635589,2675.9,2675.7,0.74735]
[1739434732299,15.63635589,2675.9,2675.8,40.8]
[1739434732806,18.13104171,2675.9,2675.8,40.8]
[1739434733309,18.13104171,2675.9,2675.8,41.54733]
[1739434733911,18.13104171,2675.9,2675.8,40.8]
[1739434734213,18.13104171,2675.9,2675.5,0.00560423]
[1739434734412,2.49468582,2675.6,2675.5,0.75301423]
[1739434735213,2.49468582,2675.6,2675.5,0.75299423]
[1739434737910,15.63635589,2675.9,2675.5,3.21340423]
[1739434738110,16.89073171,2675.9,2675.8,7.25140401]
[1739434738810,16.89073171,2675.9,2675.8,48.05140401]
[1739434740111,16.89073171,2675.9,2675.8,44.75513]
[1739434740313,16.89073171,2675.9,2675.8,0.74733]
[1739434741614,16.89073171,2675.9,2675.6,40.8]
[1739434741813,1.25437582,2675.7,2675.6,41.54738]
[1739434743907,1.25437582,2675.7,2675.5,0.00560423]
[1739434743908,4.46217582,2675.7,2675.5,0.00560423]
[1739434744111,1.25437582,2675.6,2675.5,0.75301423]
[1739434744512,1.25437582,2675.6,2675.5,41.55301423]
[1739434744817,1.25437582,2675.6,2675.5,0.75301423]
[1739434745011,7.25437582,2675.6,2675.5,3.636e-05]
[1739434745202,1.25437582,2675.6,2675.5,3.636e-05]
[1739434745410,1.25437582,2675.6,2675.5,0.74744636]
[1739434746018,1.25437582,2675.6,2675.5,3.636e-05]
[1739434746311,1.25437582,2675.6,2675.5,0.74744636]
[1739434746509,0.45807582,2675.6,2675.5,0.74744636]
[1739434746710,0.8896,2675.7,2675.6,0.74738]
[1739434747715,0.8896,2675.7,2675.5,3.636e-05]
[1739434747919,0.8896,2675.7,2675.6,0.74738]
[1739434748521,15.63635589,2675.9,2675.8,0.74733]
[1739434750620,14.85508589,2675.9,2675.8,7.25140401]
[1739434751029,14.85508589,2675.9,2675.8,4.04360401]
[1739434751218,14.85508589,2675.9,2675.8,7.25140401]
[1739434752020,14.85508589,2675.9,2675.8,0.74733]
[1739434752322,14.85508589,2675.9,2675.8,41.54733]
[1739434754019,13.71026589,2675.9,2675.8,48.05140401]
[1739434754219,10.43317589,2675.9,2675.8,48.05140401]
[1739434754420,4.23e-06,2676.3,2676.2,0.74722]
[1739434754619,4.23e-06,2676.3,2676.2,7.25129401]
[1739434754811,3.2078,2677.3,2677.2,0.74694]
[1739434755014,0.9526,2677.6,2676.8,3.29627401]
[1739434755215,0.9526,2677.6,2677.5,0.74685]
[1739434756321,0.00560423,2677.8,2677.7,0.7468]
[1739434756715,0.00560423,2677.8,2677.3,0.00560423]
[1739434756917,0.00560423,2677.8,2677.6,0.74681]
[1739434757215,0.00560423,2677.8,2677.3,0.00560423]
[1739434757420,0.00560423,2677.8,2677.3,3.96030423]
[1739434757421,3.21340423,2677.8,2677.3,3.96030423]
[1739434757624,3.96017423,2677.8,2677.3,3.21340423]
[1739434757826,0.9337,2677.7,2677.3,0.00560423]
[1739434758121,3.6144,2677.7,2677.3,0.00560423]
[1739434758325,2.8676,2677.7,2677.3,0.00560423]
[1739434758628,3.61441,2677.7,2677.3,0.00560423]
[1739434758817,2.8676,2677.7,2677.3,0.00560423]
[1739434759126,2.8676,2677.7,2677.4,0.74687]
[1739434759332,2.8676,2677.7,2677.3,0.75249423]
[1739434759822,2.8676,2677.7,2677.3,0.75250423]
[1739434760124,2.8676,2677.7,2677.3,0.00560423]
[1739434760328,2.8676,2677.7,2677.3,3.21340423]
[1739434760522,2.8676,2677.7,2677.6,0.74683]
[1739434761117,0.9793,2677.7,2677.6,0.74683]
[1739434761322,0.00560423,2677.8,2677.7,0.7468]
[1739434762218,0.00560423,2677.8,2677.7,4.57846059]
[1739434762517,0.9747,2678.3,2678.2,0.74666]
[1739434762718,3.2078,2678.7,2678.0,7.03946059]
[1739434762916,3.2078,2678.7,2678.1,40.8]
[1739434763323,3.2078,2678.7,2678.3,3.83166059]
[1739434763626,0.00556787,2678.7,2678.6,4.57821059]
[1739434764125,3.2078,2679.6,2678.6,13.03946059]
[1739434764324,3.2078,2679.6,2679.2,3.83166059]
[1739434764722,3.2078,2679.6,2679.0,5.1138]
[1739434764916,3.95409,2679.6,2679.0,5.1138]
[1739434765123,3.2078,2679.6,2679.0,1.91160423]
[1739434765827,3.95409,2679.6,2679.0,1.91160423]
[1739434766031,3.2078,2679.6,2679.0,2.65802423]
[1739434766220,3.2078,2679.6,2679.0,1.91160423]
[1739434766725,3.2078,2679.6,2679.0,2.65803423]
[1739434766925,3.95407,2679.6,2679.0,2.65803423]
[1739434767223,3.95407,2679.6,2679.0,1.91160423]
[1739434767427,3.2078,2679.6,2679.0,1.91160423]
[1739434767622,3.2078,2679.3,2679.0,0.00560423]
[1739434767829,0.74639,2679.2,2679.0,0.00560423]
[1739434768024,3.2078,2679.3,2679.0,0.00560423]
[1739434768727,0.9961,2679.2,2679.0,0.00560423]
[1739434769126,0.9961,2679.2,2679.0,0.75203423]
[1739434769634,0.9961,2679.2,2679.0,0.75202423]
[1739434769932,0.9961,2679.2,2679.0,0.00560423]
[1739434770827,0.9961,2679.2,2679.0,0.75202423]
[1739434771034,0.9961,2679.2,2679.0,0.00560423]
[1739434771529,1.74249,2679.2,2679.0,0.00560423]
[1739434771731,0.9961,2679.2,2679.0,0.00560423]
[1739434771931,1.74249,2679.2,2679.0,0.00560423]
[1739434772127,0.9961,2679.2,2679.0,0.00560423]
[1739434772729,0.74641,2679.1,2679.0,0.00560423]
[1739434772930,0.74653,2678.7,2678.1,3.2078]
[1739434773234,3.9543,2678.8,2678.4,0.74659]
[1739434773435,0.74652,2678.7,2678.4,0.74659]
[1739434773638,3.2078,2678.8,2677.9,19.568]
[1739434773829,3.2078,2678.4,2677.9,19.568]
[1739434774028,3.2078,2678.4,2678.2,0.74665]
[1739434774336,3.2078,2678.4,2678.3,0.74663]
[1739434774527,3.2078,2678.4,2678.1,40.80560423]
[1739434774728,7.03946059,2678.4,2678.1,40.80560423]
[1739434774927,0.74666,2678.2,2678.1,0.00560423]
[1739434775430,9.76666,2678.2,2677.2,0.9324]
[1739434775735,3.2078,2677.5,2677.4,0.74688]
[1739434775932,3.2078,2677.5,2677.4,41.54688]
[1739434776233,3.2078,2677.5,2677.4,40.8]
[1739434776432,3.2078,2677.5,2677.4,41.54688]
[1739434776636,3.2078,2677.5,2677.4,40.8]
[1739434778836,3.2078,2677.5,2677.4,41.54688]
[1739434779826,3.2078,2677.5,2677.4,40.8]
[1739434780041,3.2078,2677.5,2677.4,41.54688]
[1739434780238,3.2078,2677.5,2677.4,40.8]
[1739434780641,3.95465,2677.5,2677.4,40.8]
[1739434780939,3.2078,2677.5,2677.4,41.54688]
[1739434781334,3.2078,2677.5,2677.4,40.8]
[1739434781535,3.95465,2677.5,2677.4,40.8]
[1739434781842,3.2078,2677.5,2677.4,40.8]
[1739434782735,3.95465,2677.5,2677.4,40.8]
[1739434782935,0.74691,2677.3,2677.2,2.31029423]
[1739434783535,0.74691,2677.3,2677.2,3.05723423]
[1739434783743,0.74691,2677.3,2677.2,2.31029423]
[1739434788640,9.83166059,2677.3,2676.8,40.8]
[1739434788850,3.2078,2676.9,2676.0,5.07599]
[1739434789037,0.74709,2676.7,2676.5,0.74712]
[1739434789244,0.74709,2676.7,2676.1,1.86812]
[1739434789245,3.2078,2676.9,2676.2,40.8]
[1739434789441,0.74714,2676.5,2676.4,0.74715]
[1739434789948,0.74719,2676.3,2676.2,40.80560423]
[1739434790144,3.95499,2676.3,2676.2,0.00560423]
[1739434790745,9.50232857,2676.3,2675.4,3.2078]
[1739434790951,3.2078,2676.0,2675.4,3.2078]
[1739434791245,0.74741,2675.5,2675.2,1.74767]
[1739434791552,0.74746,2675.4,2675.1,1.0011]
[1739434791746,0.7475,2675.2,2674.8,0.74758]